[Event "Late-Titled-Tuesday-Blitz-February-27-2024"]
[Site "Chess.com"]
[Date "2024.02.27"]
[Round "4"]
[White "Yahisalem"]
[Black "zsizsi99"]
[Result "0-1"]
[WhiteElo "2061"]
[BlackElo "2456"]
[TimeControl "180+1"]
[EndTime "14:39:53 PST"]
[Termination "zsizsi99 won by resignation"]

1. e4 {[%clk 0:02:46.6]} 1... c5 {[%clk 0:02:54]} 2. Nf3 {[%clk 0:02:46.1]} 2...
Nc6 {[%clk 0:02:50.9]} 3. d4 {[%clk 0:02:45.8]} 3... cxd4 {[%clk 0:02:51.5]} 4.
Nxd4 {[%clk 0:02:46.7]} 4... e5 {[%clk 0:02:52]} 5. Nf3 {[%clk 0:02:45.4]} 5...
Nf6 {[%clk 0:02:48.9]} 6. Nc3 {[%clk 0:02:44.7]} 6... Bb4 {[%clk 0:02:48.8]} 7.
Bd3 {[%clk 0:02:42.6]} 7... d5 {[%clk 0:02:45.8]} 8. O-O {[%clk 0:02:39.6]} 8...
Bxc3 {[%clk 0:02:42]} 9. bxc3 {[%clk 0:02:39.1]} 9... dxe4 {[%clk 0:02:41.7]}
10. Ba3 {[%clk 0:02:26.4]} 10... exd3 {[%clk 0:02:23.1]} 11. cxd3 {[%clk
0:02:22.9]} 11... Bf5 {[%clk 0:02:15.2]} 12. d4 {[%clk 0:02:19.7]} 12... e4
{[%clk 0:02:15.5]} 13. Nh4 {[%clk 0:02:17.6]} 13... Bg6 {[%clk 0:02:15.3]} 14.
Nxg6 {[%clk 0:02:14.2]} 14... hxg6 {[%clk 0:02:15]} 15. f3 {[%clk 0:02:13.2]}
15... Qa5 {[%clk 0:02:10.3]} 16. Qb3 {[%clk 0:02:09]} 16... Qb6 {[%clk
0:01:59.1]} 17. Qc2 {[%clk 0:01:58.7]} 17... Qa5 {[%clk 0:01:47.1]} 18. Qb3
{[%clk 0:01:57.8]} 18... O-O-O {[%clk 0:01:45.5]} 19. fxe4 {[%clk 0:01:54.7]}
19... Qg5 {[%clk 0:01:38.5]} 20. Rae1 {[%clk 0:01:40.8]} 20... Qh4 {[%clk
0:01:09.5]} 21. h3 {[%clk 0:01:37]} 21... Qg3 {[%clk 0:01:01.2]} 22. Rb1 {[%clk
0:01:35]} 22... Rd7 {[%clk 0:00:47]} 23. Rf3 {[%clk 0:01:28.3]} 23... Qg5 {[%clk
0:00:43.9]} 24. Re1 {[%clk 0:01:25.8]} 24... Qd2 {[%clk 0:00:27.7]} 25. Ref1
{[%clk 0:01:23.2]} 25... Nxe4 {[%clk 0:00:25]} 26. Rxf7 {[%clk 0:01:20.6]} 26...
Qe3+ {[%clk 0:00:25.3]} 27. Kh2 {[%clk 0:01:15.9]} 27... Qg3+ {[%clk 0:00:24.2]}
28. Kh1 {[%clk 0:01:14.9]} 28... Qxc3 {[%clk 0:00:17.4]} 29. Rxd7 {[%clk
0:01:09.6]} 29... Qxb3 {[%clk 0:00:16.8]} 30. axb3 {[%clk 0:01:09.4]} 30... Kxd7
{[%clk 0:00:16.9]} 31. Rf7+ {[%clk 0:01:07.7]} 31... Ke6 {[%clk 0:00:14.5]} 32.
Rxb7 {[%clk 0:01:03.6]} 32... Rd8 {[%clk 0:00:14.2]} 33. Bc5 {[%clk 0:00:58.6]}
33... Rd7 {[%clk 0:00:14.3]} 34. Rxd7 {[%clk 0:00:53.9]} 34... Kxd7 {[%clk
0:00:14.4]} 35. Kg1 {[%clk 0:00:53.6]} 35... Nxc5 {[%clk 0:00:13]} 36. dxc5
{[%clk 0:00:53.6]} 36... a5 {[%clk 0:00:11.8]} 37. Kf2 {[%clk 0:00:53.1]} 37...
Nd4 {[%clk 0:00:12.3]} 38. Ke3 {[%clk 0:00:50.3]} 38... Nxb3 {[%clk 0:00:12.8]}
39. Kd3 {[%clk 0:00:50.5]} 39... Nxc5+ {[%clk 0:00:12.7]} 40. Kc4 {[%clk
0:00:51]} 40... Kc6 {[%clk 0:00:12.9]} 41. g4 {[%clk 0:00:49]} 41... g5 {[%clk
0:00:12.2]} 42. Kc3 {[%clk 0:00:47.7]} 42... Ne4+ {[%clk 0:00:12.3]} 0-1

[Event "Late-Titled-Tuesday-Blitz-February-27-2024"]
[Site "Chess.com"]
[Date "2024.02.27"]
[Round "4"]
[White "lucliasco"]
[Black "Rutricks"]
[Result "1/2-1/2"]
[WhiteElo "2890"]
[BlackElo "2688"]
[TimeControl "180+1"]
[EndTime "14:39:55 PST"]
[Termination "Game drawn by repetition"]

1. d4 {[%clk 0:02:28.6]} 1... g6 {[%clk 0:02:59.2]} 2. c4 {[%clk 0:02:28.4]}
2... Bg7 {[%clk 0:02:59.9]} 3. Nc3 {[%clk 0:02:28.4]} 3... d6 {[%clk 0:03:00.7]}
4. e4 {[%clk 0:02:27.4]} 4... Nd7 {[%clk 0:03:01.4]} 5. f4 {[%clk 0:02:27.5]}
5... e5 {[%clk 0:03:02.1]} 6. fxe5 {[%clk 0:02:13.3]} 6... dxe5 {[%clk 0:03:03]}
7. d5 {[%clk 0:02:14.2]} 7... Nh6 {[%clk 0:03:03.4]} 8. Nf3 {[%clk 0:02:14.8]}
8... O-O {[%clk 0:03:03.7]} 9. Bd3 {[%clk 0:02:15.7]} 9... f5 {[%clk 0:03:04]}
10. O-O {[%clk 0:02:16.6]} 10... Nc5 {[%clk 0:03:04]} 11. Bc2 {[%clk 0:02:14.9]}
11... f4 {[%clk 0:03:04.4]} 12. b4 {[%clk 0:02:11.5]} 12... Nd7 {[%clk 0:03:05]}
13. c5 {[%clk 0:02:02]} 13... g5 {[%clk 0:03:05.3]} 14. c6 {[%clk 0:01:59.2]}
14... Nb6 {[%clk 0:02:50.1]} 15. cxb7 {[%clk 0:01:56.3]} 15... Bxb7 {[%clk
0:02:51]} 16. Bb3 {[%clk 0:01:54.3]} 16... g4 {[%clk 0:02:37.6]} 17. Ne1 {[%clk
0:01:53.8]} 17... Kh8 {[%clk 0:02:37.6]} 18. g3 {[%clk 0:01:44.8]} 18... Nc8
{[%clk 0:02:24]} 19. Nd3 {[%clk 0:01:39.5]} 19... Ne7 {[%clk 0:02:00.6]} 20.
gxf4 {[%clk 0:01:32.2]} 20... exf4 {[%clk 0:02:01.5]} 21. Bxf4 {[%clk
0:01:30.2]} 21... Rxf4 {[%clk 0:01:52.9]} 22. Nxf4 {[%clk 0:01:29.7]} 22... Bxc3
{[%clk 0:01:53.6]} 23. Rc1 {[%clk 0:01:30.1]} 23... Be5 {[%clk 0:01:49]} 24. Ne6
{[%clk 0:01:30.4]} 24... Qd6 {[%clk 0:01:46.4]} 25. Qd2 {[%clk 0:01:26.1]} 25...
Nhg8 {[%clk 0:01:32]} 26. Qg5 {[%clk 0:01:22.7]} 26... Ng6 {[%clk 0:01:17.1]}
27. Rf7 {[%clk 0:01:17.7]} 27... Qb6+ {[%clk 0:00:28.1]} 28. Kh1 {[%clk
0:01:16.4]} 28... Qxb4 {[%clk 0:00:28.2]} 29. Qe3 {[%clk 0:01:12.8]} 29... Re8
{[%clk 0:00:23.4]} 30. Ng5 {[%clk 0:01:08.9]} 30... Nf6 {[%clk 0:00:18.5]} 31.
Rc4 {[%clk 0:01:03]} 31... Qa5 {[%clk 0:00:15.2]} 32. Rcxc7 {[%clk 0:00:55]}
32... Bxc7 {[%clk 0:00:10.3]} 33. Rxf6 {[%clk 0:00:54.8]} 33... Bxd5 {[%clk
0:00:04.3]} 34. Bxd5 {[%clk 0:00:47.3]} 34... Qxd5 {[%clk 0:00:04.8]} 35. Nf7+
{[%clk 0:00:46.9]} 35... Kg8 {[%clk 0:00:02]} 36. Nh6+ {[%clk 0:00:47.5]} 36...
Kh8 {[%clk 0:00:01.4]} 37. Nf7+ {[%clk 0:00:42.2]} 37... Kg8 {[%clk 0:00:01.3]}
38. Nh6+ {[%clk 0:00:39.8]} 38... Kh8 {[%clk 0:00:01.7]} 39. Nf7+ {[%clk
0:00:35.8]} 1/2-1/2

[Event "Late-Titled-Tuesday-Blitz-February-27-2024"]
[Site "Chess.com"]
[Date "2024.02.27"]
[Round "4"]
[White "jk13"]
[Black "VinzentSpitzl"]
[Result "0-1"]
[WhiteElo "2683"]
[BlackElo "2536"]
[TimeControl "180+1"]
[EndTime "14:39:57 PST"]
[Termination "VinzentSpitzl won by checkmate"]

1. e4 {[%clk 0:03:00.9]} 1... c6 {[%clk 0:02:58.8]} 2. Nf3 {[%clk 0:03:01.2]}
2... d5 {[%clk 0:02:59]} 3. Nc3 {[%clk 0:03:02.1]} 3... dxe4 {[%clk 0:02:59.4]}
4. Nxe4 {[%clk 0:03:01.7]} 4... Nf6 {[%clk 0:03:00]} 5. Qe2 {[%clk 0:03:01.7]}
5... Nxe4 {[%clk 0:02:59.5]} 6. Qxe4 {[%clk 0:03:02.6]} 6... Qd5 {[%clk
0:02:59.9]} 7. Qf4 {[%clk 0:03:02.5]} 7... Qe6+ {[%clk 0:02:53.2]} 8. Be2 {[%clk
0:03:01.7]} 8... Qf5 {[%clk 0:02:51.5]} 9. Qa4 {[%clk 0:03:00.5]} 9... Qg4
{[%clk 0:02:39.5]} 10. d4 {[%clk 0:02:47.9]} 10... Qxg2 {[%clk 0:02:27.4]} 11.
Rg1 {[%clk 0:02:48.5]} 11... Qh3 {[%clk 0:02:25.8]} 12. Bf4 {[%clk 0:02:35.1]}
12... Nd7 {[%clk 0:02:08.5]} 13. O-O-O {[%clk 0:02:31.2]} 13... Qf5 {[%clk
0:02:03.6]} 14. Bg3 {[%clk 0:02:12.6]} 14... Nb6 {[%clk 0:01:54.6]} 15. Qb3
{[%clk 0:02:06.4]} 15... Be6 {[%clk 0:01:52.6]} 16. Qe3 {[%clk 0:02:05.9]} 16...
Qa5 {[%clk 0:01:32.6]} 17. a3 {[%clk 0:02:04.5]} 17... Nd5 {[%clk 0:01:19.1]}
18. Qe5 {[%clk 0:01:52.4]} 18... Qb6 {[%clk 0:00:48.3]} 19. c4 {[%clk
0:01:42.4]} 19... Nf6 {[%clk 0:00:48.2]} 20. Kb1 {[%clk 0:01:30.1]} 20... g6
{[%clk 0:00:46]} 21. d5 {[%clk 0:01:22.4]} 21... cxd5 {[%clk 0:00:39.4]} 22.
cxd5 {[%clk 0:01:23.3]} 22... Bf5+ {[%clk 0:00:39.6]} 23. Ka1 {[%clk 0:01:23.8]}
23... Bg7 {[%clk 0:00:36.4]} 24. d6 {[%clk 0:01:19.2]} 24... O-O {[%clk
0:00:36.1]} 25. dxe7 {[%clk 0:00:45.2]} 25... Rfe8 {[%clk 0:00:36.1]} 26. Nd4
{[%clk 0:00:37.9]} 26... Ne4 {[%clk 0:00:26.7]} 27. Qc7 {[%clk 0:00:27.2]} 27...
Bxd4 {[%clk 0:00:22.1]} 28. Rxd4 {[%clk 0:00:24.3]} 28... Qxd4 {[%clk
0:00:20.3]} 29. Bb5 {[%clk 0:00:25]} 29... Nd2 {[%clk 0:00:13.6]} 30. Bxe8
{[%clk 0:00:23.9]} 30... Rxe8 {[%clk 0:00:11.5]} 31. Be5 {[%clk 0:00:21.1]}
31... Nb3+ {[%clk 0:00:09.1]} 32. Ka2 {[%clk 0:00:21.3]} 32... Qd5 {[%clk
0:00:09.1]} 33. Bc3 {[%clk 0:00:19.1]} 33... Nc1+ {[%clk 0:00:06.5]} 34. Ka1
{[%clk 0:00:19.2]} 34... Qa2# {[%clk 0:00:06.6]} 0-1

[Event "Late-Titled-Tuesday-Blitz-February-27-2024"]
[Site "Chess.com"]
[Date "2024.02.27"]
[Round "4"]
[White "dolynachess"]
[Black "yuriydovzik"]
[Result "1-0"]
[WhiteElo "2457"]
[BlackElo "2127"]
[TimeControl "180+1"]
[EndTime "14:39:57 PST"]
[Termination "dolynachess won on time"]

1. d4 {[%clk 0:03:00.2]} 1... Nf6 {[%clk 0:02:58.3]} 2. c4 {[%clk 0:03:00.4]}
2... e6 {[%clk 0:02:53.8]} 3. g3 {[%clk 0:02:59.9]} 3... d5 {[%clk 0:02:47.8]}
4. Bg2 {[%clk 0:02:59]} 4... Bb4+ {[%clk 0:02:43.1]} 5. Nd2 {[%clk 0:02:58.2]}
5... O-O {[%clk 0:02:37.6]} 6. Nf3 {[%clk 0:02:54.9]} 6... dxc4 {[%clk
0:02:35.6]} 7. Qc2 {[%clk 0:02:49]} 7... Nd5 {[%clk 0:02:24.1]} 8. Qxc4 {[%clk
0:02:37.1]} 8... b5 {[%clk 0:02:15.8]} 9. Qc2 {[%clk 0:02:28.5]} 9... Be7 {[%clk
0:02:03.9]} 10. O-O {[%clk 0:02:21.1]} 10... a5 {[%clk 0:01:56.5]} 11. Ne4
{[%clk 0:02:12.2]} 11... Nd7 {[%clk 0:01:41.5]} 12. Bd2 {[%clk 0:01:56.3]} 12...
Bb7 {[%clk 0:01:32.5]} 13. Rfc1 {[%clk 0:01:48.5]} 13... f5 {[%clk 0:01:25]} 14.
Neg5 {[%clk 0:01:24]} 14... Rf6 {[%clk 0:01:03.2]} 15. Ne5 {[%clk 0:01:19.1]}
15... Nxe5 {[%clk 0:00:58]} 16. dxe5 {[%clk 0:01:18.2]} 16... Rg6 {[%clk
0:00:57.7]} 17. Nh3 {[%clk 0:01:18.1]} 17... c5 {[%clk 0:00:51.6]} 18. e4 {[%clk
0:00:59.5]} 18... Nb4 {[%clk 0:00:41.3]} 19. Bxb4 {[%clk 0:00:58]} 19... axb4
{[%clk 0:00:35.6]} 20. exf5 {[%clk 0:00:58.2]} 20... Bxg2 {[%clk 0:00:34.8]} 21.
Kxg2 {[%clk 0:00:58]} 21... exf5 {[%clk 0:00:34.1]} 22. Qxf5 {[%clk 0:00:54.6]}
22... Qd5+ {[%clk 0:00:29.9]} 23. Kg1 {[%clk 0:00:45.4]} 23... Rga6 {[%clk
0:00:26.4]} 24. Nf4 {[%clk 0:00:42.6]} 24... Qf7 {[%clk 0:00:22.9]} 25. Qd7
{[%clk 0:00:36.4]} 25... g5 {[%clk 0:00:17.6]} 26. Nd5 {[%clk 0:00:27.6]} 26...
Bf8 {[%clk 0:00:13.7]} 27. Qxf7+ {[%clk 0:00:26.8]} 27... Kxf7 {[%clk
0:00:12.9]} 28. Nc7 {[%clk 0:00:27.1]} 28... c4 {[%clk 0:00:04.8]} 29. Nxa8
{[%clk 0:00:20.9]} 29... Rxa8 {[%clk 0:00:04.5]} 30. Kg2 {[%clk 0:00:20]} 30...
Ke6 {[%clk 0:00:03.8]} 31. f4 {[%clk 0:00:20.5]} 31... gxf4 {[%clk 0:00:03.1]}
32. gxf4 {[%clk 0:00:21.4]} 32... Bh6 {[%clk 0:00:02]} 33. Kf3 {[%clk
0:00:21.3]} 1-0

[Event "Late-Titled-Tuesday-Blitz-February-27-2024"]
[Site "Chess.com"]
[Date "2024.02.27"]
[Round "4"]
[White "ChadBiryani"]
[Black "NoHeThTo"]
[Result "0-1"]
[WhiteElo "2418"]
[BlackElo "2640"]
[TimeControl "180+1"]
[EndTime "14:40:04 PST"]
[Termination "NoHeThTo won by checkmate"]

1. c4 {[%clk 0:02:59.9]} 1... Nf6 {[%clk 0:02:59.1]} 2. g3 {[%clk 0:02:59.8]}
2... g6 {[%clk 0:02:58.3]} 3. Bg2 {[%clk 0:03:00.4]} 3... Bg7 {[%clk 0:02:58.7]}
4. Nc3 {[%clk 0:03:00.8]} 4... O-O {[%clk 0:02:58.9]} 5. e4 {[%clk 0:03:00.9]}
5... d6 {[%clk 0:02:58.5]} 6. Nge2 {[%clk 0:03:01.5]} 6... c5 {[%clk 0:02:58.8]}
7. O-O {[%clk 0:03:02.1]} 7... Nc6 {[%clk 0:02:59.5]} 8. d3 {[%clk 0:03:02.6]}
8... Ne8 {[%clk 0:03:00.1]} 9. Be3 {[%clk 0:02:58.8]} 9... e5 {[%clk 0:02:55.8]}
10. Qd2 {[%clk 0:02:59.2]} 10... Nc7 {[%clk 0:02:55.3]} 11. Bh6 {[%clk
0:02:55.7]} 11... Ne6 {[%clk 0:02:50.1]} 12. Nd5 {[%clk 0:02:51.5]} 12... f5
{[%clk 0:02:42.4]} 13. Bxg7 {[%clk 0:02:49.8]} 13... Kxg7 {[%clk 0:02:41.6]} 14.
exf5 {[%clk 0:02:50.1]} 14... gxf5 {[%clk 0:02:41.3]} 15. f4 {[%clk 0:02:50.4]}
15... Ned4 {[%clk 0:02:39]} 16. Nec3 {[%clk 0:02:45.2]} 16... Be6 {[%clk
0:02:36.4]} 17. Rae1 {[%clk 0:02:45.1]} 17... Bxd5 {[%clk 0:02:35.9]} 18. Bxd5
{[%clk 0:02:39.7]} 18... Rc8 {[%clk 0:02:06.1]} 19. Kh1 {[%clk 0:02:35.8]} 19...
a6 {[%clk 0:02:01.5]} 20. Qg2 {[%clk 0:02:19.3]} 20... Rc7 {[%clk 0:01:58.7]}
21. g4 {[%clk 0:02:15.8]} 21... fxg4 {[%clk 0:01:53.8]} 22. Qxg4+ {[%clk
0:02:15.6]} 22... Kh8 {[%clk 0:01:53.7]} 23. Rg1 {[%clk 0:02:14.1]} 23... Nf5
{[%clk 0:01:26.8]} 24. fxe5 {[%clk 0:01:50.2]} 24... Nxe5 {[%clk 0:01:20.3]} 25.
Rxe5 {[%clk 0:01:50.4]} 25... dxe5 {[%clk 0:01:13.3]} 26. Ne4 {[%clk 0:01:49.1]}
26... Rg7 {[%clk 0:01:11]} 27. Qd1 {[%clk 0:01:34.4]} 27... Ne3 {[%clk
0:01:06.7]} 28. Qh5 {[%clk 0:01:05.1]} 28... Rxg1+ {[%clk 0:00:54]} 29. Kxg1
{[%clk 0:01:06]} 29... Nxd5 {[%clk 0:00:54.2]} 30. cxd5 {[%clk 0:01:03.9]} 30...
Qxd5 {[%clk 0:00:44.6]} 31. Qh6 {[%clk 0:00:49.5]} 31... Qg8+ {[%clk 0:00:38.2]}
32. Ng3 {[%clk 0:00:44.2]} 32... Qg7 {[%clk 0:00:36.3]} 33. Qd6 {[%clk
0:00:37.2]} 33... h5 {[%clk 0:00:23.8]} 34. Qe6 {[%clk 0:00:14.6]} 34... h4
{[%clk 0:00:17.1]} 35. Qh3 {[%clk 0:00:14.7]} 35... Qg5 {[%clk 0:00:15.9]} 36.
b3 {[%clk 0:00:09.8]} 36... Qe3+ {[%clk 0:00:14.2]} 37. Kh1 {[%clk 0:00:08.1]}
37... Qe1+ {[%clk 0:00:13.7]} 38. Kg2 {[%clk 0:00:07.7]} 38... Rf2# {[%clk
0:00:13.1]} 0-1

[Event "Late-Titled-Tuesday-Blitz-February-27-2024"]
[Site "Chess.com"]
[Date "2024.02.27"]
[Round "4"]
[White "Rud_Makarian"]
[Black "Elsa167"]
[Result "1-0"]
[WhiteElo "3096"]
[BlackElo "2901"]
[TimeControl "180+1"]
[EndTime "14:40:05 PST"]
[Termination "Rud_Makarian won on time"]

1. Nf3 {[%clk 0:03:00.9]} 1... d5 {[%clk 0:02:56.2]} 2. c4 {[%clk 0:03:01.3]}
2... e6 {[%clk 0:02:56.1]} 3. g3 {[%clk 0:03:01.4]} 3... Nf6 {[%clk 0:02:56.5]}
4. Bg2 {[%clk 0:03:02]} 4... Be7 {[%clk 0:02:57.2]} 5. O-O {[%clk 0:03:02.2]}
5... O-O {[%clk 0:02:57.9]} 6. Ne5 {[%clk 0:03:02.4]} 6... c6 {[%clk 0:02:54.7]}
7. d4 {[%clk 0:03:02.1]} 7... Nbd7 {[%clk 0:02:49.9]} 8. Nc3 {[%clk 0:03:02.3]}
8... Nxe5 {[%clk 0:02:48]} 9. dxe5 {[%clk 0:03:03.2]} 9... Nd7 {[%clk
0:02:47.9]} 10. cxd5 {[%clk 0:03:03.7]} 10... cxd5 {[%clk 0:02:45.9]} 11. e4
{[%clk 0:03:04.1]} 11... d4 {[%clk 0:02:36.4]} 12. Qxd4 {[%clk 0:03:04.1]} 12...
Bc5 {[%clk 0:02:34.5]} 13. Qc4 {[%clk 0:03:04.1]} 13... b6 {[%clk 0:02:26.1]}
14. Rd1 {[%clk 0:02:52.8]} 14... Qc7 {[%clk 0:02:25.2]} 15. Qe2 {[%clk
0:02:47.9]} 15... a5 {[%clk 0:02:05.7]} 16. Nb5 {[%clk 0:02:33.5]} 16... Qc6
{[%clk 0:01:52.3]} 17. Bf4 {[%clk 0:02:30.1]} 17... Ba6 {[%clk 0:01:52.1]} 18.
a4 {[%clk 0:02:30.6]} 18... Be7 {[%clk 0:01:42.1]} 19. Rac1 {[%clk 0:02:12.4]}
19... Nc5 {[%clk 0:01:42.5]} 20. b3 {[%clk 0:02:00.4]} 20... Rfd8 {[%clk
0:01:38.4]} 21. Bf1 {[%clk 0:01:47.9]} 21... Rxd1 {[%clk 0:01:23.2]} 22. Qxd1
{[%clk 0:01:48.8]} 22... Rd8 {[%clk 0:01:21.6]} 23. Nd6 {[%clk 0:01:16.3]} 23...
Bxf1 {[%clk 0:01:18.8]} 24. Qxf1 {[%clk 0:01:17.2]} 24... Bxd6 {[%clk
0:00:59.3]} 25. exd6 {[%clk 0:01:18.1]} 25... Qxe4 {[%clk 0:00:59.9]} 26. Qb5
{[%clk 0:01:18.4]} 26... Qb4 {[%clk 0:00:22.8]} 27. Qxb4 {[%clk 0:01:06.7]}
27... axb4 {[%clk 0:00:23]} 28. Be3 {[%clk 0:00:51]} 28... Nxb3 {[%clk
0:00:05.3]} 29. Rb1 {[%clk 0:00:18.3]} 29... Na5 {[%clk 0:00:03]} 30. Bxb6
{[%clk 0:00:18.2]} 30... Ra8 {[%clk 0:00:02]} 31. Bxa5 {[%clk 0:00:12.5]} 31...
Rxa5 {[%clk 0:00:02.9]} 32. d7 {[%clk 0:00:13]} 32... Ra8 {[%clk 0:00:02.4]} 33.
Rc1 {[%clk 0:00:11.6]} 1-0

[Event "Late-Titled-Tuesday-Blitz-February-27-2024"]
[Site "Chess.com"]
[Date "2024.02.27"]
[Round "4"]
[White "dawid498"]
[Black "OneTrickPony_82"]
[Result "1-0"]
[WhiteElo "2713"]
[BlackElo "2530"]
[TimeControl "180+1"]
[EndTime "14:40:06 PST"]
[Termination "dawid498 won by resignation"]

1. e4 {[%clk 0:03:00.9]} 1... e5 {[%clk 0:02:59.8]} 2. Nc3 {[%clk 0:03:00.5]}
2... Nc6 {[%clk 0:02:59.8]} 3. g3 {[%clk 0:03:01]} 3... Bc5 {[%clk 0:02:58.7]}
4. Bg2 {[%clk 0:03:01.5]} 4... a5 {[%clk 0:02:59.1]} 5. d3 {[%clk 0:02:59.7]}
5... Nge7 {[%clk 0:02:59]} 6. Nge2 {[%clk 0:02:35]} 6... d6 {[%clk 0:02:58.5]}
7. O-O {[%clk 0:02:27.1]} 7... Be6 {[%clk 0:02:58.3]} 8. h3 {[%clk 0:02:27]}
8... d5 {[%clk 0:02:38.3]} 9. exd5 {[%clk 0:02:07.1]} 9... Nxd5 {[%clk
0:02:37.7]} 10. Kh2 {[%clk 0:02:01.9]} 10... O-O {[%clk 0:02:35.6]} 11. Ne4
{[%clk 0:01:54.1]} 11... Be7 {[%clk 0:02:31.6]} 12. f4 {[%clk 0:01:54]} 12...
exf4 {[%clk 0:01:57.3]} 13. Nxf4 {[%clk 0:01:54.9]} 13... Nxf4 {[%clk 0:01:57]}
14. Bxf4 {[%clk 0:01:55.8]} 14... h6 {[%clk 0:01:53.5]} 15. c3 {[%clk 0:01:51]}
15... Qd7 {[%clk 0:01:50]} 16. d4 {[%clk 0:01:49.1]} 16... Rad8 {[%clk
0:01:42.4]} 17. Qh5 {[%clk 0:01:06.4]} 17... Rfe8 {[%clk 0:01:32.8]} 18. Nc5
{[%clk 0:00:35.6]} 18... Bxc5 {[%clk 0:01:31.2]} 19. Qxc5 {[%clk 0:00:36.5]}
19... Bd5 {[%clk 0:01:22]} 20. Qxd5 {[%clk 0:00:31.8]} 20... Qxd5 {[%clk
0:01:21.8]} 21. Bxd5 {[%clk 0:00:32.7]} 21... Rxd5 {[%clk 0:01:21.9]} 22. Rae1
{[%clk 0:00:33.5]} 22... Rc8 {[%clk 0:01:04.4]} 23. Kg2 {[%clk 0:00:31.8]} 23...
f6 {[%clk 0:00:56.3]} 24. b3 {[%clk 0:00:31.7]} 24... Kf7 {[%clk 0:00:53.2]} 25.
g4 {[%clk 0:00:30.2]} 25... Rd7 {[%clk 0:00:48.5]} 26. Re4 {[%clk 0:00:27.4]}
26... Re7 {[%clk 0:00:46]} 27. Kf3 {[%clk 0:00:25.5]} 27... Rxe4 {[%clk
0:00:45.7]} 28. Kxe4 {[%clk 0:00:26.4]} 28... Ne7 {[%clk 0:00:40.6]} 29. c4
{[%clk 0:00:24.9]} 29... c6 {[%clk 0:00:40.2]} 30. Bd2 {[%clk 0:00:22]} 30...
Ra8 {[%clk 0:00:39.3]} 31. a4 {[%clk 0:00:21.5]} 31... b6 {[%clk 0:00:38.4]} 32.
h4 {[%clk 0:00:18]} 32... Re8 {[%clk 0:00:36.4]} 33. Kd3 {[%clk 0:00:18.3]}
33... Nc8 {[%clk 0:00:32.4]} 34. g5 {[%clk 0:00:17.8]} 34... hxg5 {[%clk
0:00:31.6]} 35. hxg5 {[%clk 0:00:18.7]} 35... Nd6 {[%clk 0:00:31.7]} 36. gxf6
{[%clk 0:00:14.2]} 36... gxf6 {[%clk 0:00:31.7]} 37. Bf4 {[%clk 0:00:14.9]}
37... Ne4 {[%clk 0:00:29.5]} 38. Bc7 {[%clk 0:00:15]} 38... b5 {[%clk
0:00:24.1]} 39. axb5 {[%clk 0:00:14.7]} 39... cxb5 {[%clk 0:00:24.3]} 40. cxb5
{[%clk 0:00:15.3]} 40... Kg6 {[%clk 0:00:22]} 41. b6 {[%clk 0:00:15.3]} 1-0

[Event "Late-Titled-Tuesday-Blitz-February-27-2024"]
[Site "Chess.com"]
[Date "2024.02.27"]
[Round "4"]
[White "Grischuk"]
[Black "Vigg-Sama"]
[Result "1-0"]
[WhiteElo "3039"]
[BlackElo "2251"]
[TimeControl "180+1"]
[EndTime "14:40:09 PST"]
[Termination "Grischuk won by checkmate"]

1. d4 {[%clk 0:03:00.9]} 1... Nf6 {[%clk 0:02:59.6]} 2. c4 {[%clk 0:03:01.6]}
2... g6 {[%clk 0:02:59.3]} 3. g3 {[%clk 0:03:01.8]} 3... c6 {[%clk 0:02:59]} 4.
Bg2 {[%clk 0:03:00.4]} 4... d5 {[%clk 0:02:59]} 5. Qa4 {[%clk 0:03:01]} 5...
dxc4 {[%clk 0:02:54.6]} 6. Qxc4 {[%clk 0:03:01.9]} 6... Bg7 {[%clk 0:02:55.3]}
7. Nf3 {[%clk 0:03:01.4]} 7... O-O {[%clk 0:02:54.9]} 8. O-O {[%clk 0:03:01.6]}
8... Bf5 {[%clk 0:02:55.6]} 9. Nc3 {[%clk 0:03:00.1]} 9... Nbd7 {[%clk
0:02:55.4]} 10. Re1 {[%clk 0:02:59.4]} 10... Rc8 {[%clk 0:02:29.9]} 11. e4
{[%clk 0:02:56]} 11... Be6 {[%clk 0:02:26.5]} 12. Qd3 {[%clk 0:02:23.5]} 12...
b5 {[%clk 0:02:04.8]} 13. Rd1 {[%clk 0:01:59.6]} 13... Bc4 {[%clk 0:02:00.6]}
14. Qc2 {[%clk 0:01:59.2]} 14... b4 {[%clk 0:01:57.3]} 15. Ne2 {[%clk
0:01:42.5]} 15... Bb5 {[%clk 0:01:51.1]} 16. Nf4 {[%clk 0:01:24.1]} 16... Qc7
{[%clk 0:01:39.9]} 17. e5 {[%clk 0:01:13]} 17... Nd5 {[%clk 0:01:38.5]} 18. e6
{[%clk 0:01:11.1]} 18... Nxf4 {[%clk 0:01:27.8]} 19. Bxf4 {[%clk 0:01:10.5]}
19... Qb7 {[%clk 0:01:11.4]} 20. exd7 {[%clk 0:01:09.6]} 20... Qxd7 {[%clk
0:01:12.3]} 21. Ne5 {[%clk 0:01:10.1]} 21... Bxe5 {[%clk 0:01:01.1]} 22. Bxe5
{[%clk 0:01:03.3]} 22... f6 {[%clk 0:01:01.2]} 23. Bf4 {[%clk 0:01:03.6]} 23...
Rfd8 {[%clk 0:00:59.9]} 24. Qc5 {[%clk 0:01:02.9]} 24... a5 {[%clk 0:00:53.2]}
25. h4 {[%clk 0:01:03.2]} 25... h5 {[%clk 0:00:46.2]} 26. Rac1 {[%clk
0:01:02.6]} 26... Kg7 {[%clk 0:00:32]} 27. a3 {[%clk 0:01:00]} 27... bxa3 {[%clk
0:00:31.3]} 28. bxa3 {[%clk 0:01:00.9]} 28... a4 {[%clk 0:00:31.8]} 29. Kh2
{[%clk 0:00:56.9]} 29... Kf7 {[%clk 0:00:26.9]} 30. Qb4 {[%clk 0:00:52.6]} 30...
Qf5 {[%clk 0:00:15.1]} 31. d5 {[%clk 0:00:48.4]} 31... g5 {[%clk 0:00:14.8]} 32.
Be3 {[%clk 0:00:34.2]} 32... gxh4 {[%clk 0:00:14.3]} 33. Qxh4 {[%clk 0:00:34.7]}
33... Be2 {[%clk 0:00:11.2]} 34. Re1 {[%clk 0:00:31.3]} 34... Bf3 {[%clk
0:00:10.5]} 35. dxc6 {[%clk 0:00:25.8]} 35... Bxg2 {[%clk 0:00:07.3]} 36. Kxg2
{[%clk 0:00:26.7]} 36... Qd5+ {[%clk 0:00:05]} 37. Kg1 {[%clk 0:00:27.3]} 37...
Rxc6 {[%clk 0:00:05.1]} 38. Rxc6 {[%clk 0:00:28.2]} 38... Qxc6 {[%clk 0:00:06]}
39. Qxh5+ {[%clk 0:00:28.8]} 39... Kf8 {[%clk 0:00:06.5]} 40. Bh6+ {[%clk
0:00:28.1]} 40... Kg8 {[%clk 0:00:07.2]} 41. Qg6+ {[%clk 0:00:28.7]} 41... Kh8
{[%clk 0:00:07.9]} 42. Qg7# {[%clk 0:00:29.6]} 1-0